Cogmind - Beta 14 @@@ ROGUE MODE // 2024.11.11 @ 01:38:54 Player: Udabudha Result: Destroyed by G-47 Trooper with Particle Gun Performance ------------- Evolutions (2) 1000 Regions Visited (5) 1000 Robots Destroyed (20) 100 Value Destroyed (649) 649 Prototype IDs (1) 20 Alien Tech Used (0) 0 Bonus (94) 94 TOTAL SCORE: 2863 Bonus ------- High Alert Combat Kills 22 Follower Combat Kills 72 Cogmind --------- Core Integrity 0/550 Matter 276/300 Energy 20/100 System Corruption 1% Temperature Cool (9) Movement Core (50) Location -8/Storage Parts ------- > --- POWER (1) -------- (None) > --- PROPULSION (4) --- (None) > --- UTILITY (4) ------ Hacking Suite > --- WEAPON (2) ------- (None) > --- INVENTORY (5) ---- (None) Peak State ------------ > --- POWER ------------ Light Angular Momentum Engine > --- PROPULSION ------- Carbon-fiber Leg Carbon-fiber Leg Carbon-fiber Leg VSS Leg > --- UTILITY ---------- Small Storage Unit Improved Light Armor Plating Improved Light Armor Plating Improved Light Armor Plating > --- WEAPON ----------- Heavy Particle Cannon Gauss Rifle > --- INVENTORY -------- Heavy Ion Engine Light Nuclear Core Titanium Leg Improved Light Armor Plating Hacking Suite EM Pulse Cannon Heavy Particle Cannon Shock Bomb Launcher [Rating: 36] Favorites ----------- Power Ion Engine Engine Ion Engine Power Core Light Nuclear Core Propulsion VSS Leg Leg VSS Leg Utility Small Storage Unit Device Heat Sink Storage Small Storage Unit Hackware Hacking Suite Protection Improved Light Armor Plating Weapon EM Pulse Gun Energy Gun EM Pulse Gun Energy Cannon Heavy Particle Cannon Ballistic Gun Light Assault Rifle Launcher Shock Bomb Launcher Build | -11 -10 -10 -9 -8 -8 ------- Run | Yrd Mat Min Mat Mat Sto Slots Evolved 4 | . . . 2 2 . Power . | . . . . . . Propulsion 2 | . . . 2 . . Utility 2 | . . . . 2 . Weapon . | . . . . . . Parts Attached 40 | 6 2 1 8 17 6 Power 4 | 1 . . 1 2 . Engine 3 | 1 . . 1 1 . Core 1 | . . . . 1 . Reactor . | . . . . . . Propulsion 17 | 2 . . 6 7 2 Treads . | . . . . . . Leg 17 | 2 . . 6 7 2 Wheel . | . . . . . . Hover . | . . . . . . Flight . | . . . . . . Utility 7 | 1 1 . . 4 1 Device 1 | . 1 . . . . Storage 1 | 1 . . . . . Processor . | . . . . . . Hackware 1 | . . . . . 1 Protection 4 | . . . . 4 . Artifact . | . . . . . . Weapon 12 | 2 1 1 1 4 3 Energy Gun 4 | 2 . . . 2 . Energy Cannon 4 | . 1 . 1 . 2 Ballistic Gun 3 | . . 1 . 1 1 Ballistic Cannon . | . . . . . . Launcher 1 | . . . . 1 . Special Weapon . | . . . . . . Impact Weapon . | . . . . . . Slashing Weapon . | . . . . . . Piercing Weapon . | . . . . . . Special Melee Weapon . | . . . . . . Unidentified Prototypes 1 | . . . 1 . . Parts Lost 24 | . 1 1 . 14 8 Power 2 | . . . . 2 . Propulsion 8 | . . . . 4 4 Utility 6 | . . . . 6 . Weapon 8 | . 1 1 . 2 4 Highest Loss Streak 11 | . 1 1 . 11 8 To Critical Strikes . | . . . . . . Average Slot Usage (%) 85 | . 92 99 99 96 42 Engine 8 | . 14 14 11 8 . Leg 32 | . 28 28 43 34 24 Device 6 | . 7 14 11 3 . Storage 9 | . 14 14 11 9 . Protection 6 | . . . . 21 . Energy Gun 8 | . 22 7 . . 15 Energy Cannon 7 | . 4 14 11 8 . Ballistic Gun 5 | . . 5 11 8 1 Peak Build Rating 36 | 6 7 8 23 36 18 Average Rating 17 | 4 6 7 15 31 16 On Entrance 10 | . 6 7 8 23 18 Naked Turns . | . . . . . . Heaviest Build 33 | 14 16 16 21 33 8 Greatest Support 59 | 20 20 20 48 59 44 Greatest Overweight (x) 1 | 1 . . . . 1 Average Overweight (x) . | . . . . . . Largest Inventory Capacity 8 | 8 8 8 8 8 5 Average Capacity 7 | 6 8 8 8 7 5 Most Carried 8 | 6 8 8 8 8 4 Average Carried 6 | 3 6 7 7 7 3 Final Capacity 8 | 8 8 8 8 5 5 Final Carried 8 | 6 7 8 8 4 . Class Distribution -------------------- 86% | Mutant 13% | Scavenger-Mutant Dominant Class ---------------- Mutant | -10/Materials Mutant | -10/Mines Mutant | -9/Materials Mutant | -8/Materials Mutant | -8/Storage Resources | -11 -10 -10 -9 -8 -8 ----------- Run | Yrd Mat Min Mat Mat Sto Matter Collected 607 | 204 50 31 87 198 37 Remotely . | . . . . . . Salvage Created 779 | . 76 . 110 468 125 Parts 53 | . 4 . 10 35 4 Haulers Intercepted 1 | . . . . . 1 Recyclers Shooed . | . . . . . . Parts Field Recycled . | . . . . . . Retrieved Matter . | . . . . . . Parts Self-Destructed . | . . . . . . Prevented . | . . . . . . Kills | -11 -10 -10 -9 -8 -8 ------- Run | Yrd Mat Min Mat Mat Sto Combat Hostiles Destroyed 17 | . 1 . 2 12 2 Guns 7 | . 1 . . 4 2 Cannons 10 | . . . 2 8 . Classes Destroyed 6 | . 2 . 1 2 1 Worker 2 | . 1 . . 1 . Hauler 1 | . . . . . 1 Swarmer 4 | . . . . 4 . Grunt 5 | . 1 . . 4 . Sentry 6 | . . . 2 3 1 Hunter 2 | . . . . 1 1 Best Kill Streak 3 | . 1 . 1 3 1 Combat Bots Only 3 | . 1 . 1 3 1 Max Kills in Single Turn 2 | . 1 . 1 2 1 Gunslinging . | . . . . . . Exploded . | . . . . . . Melee . | . . . . . . Uniques/NPCs Destroyed . | . . . . . . Combat | -11 -10 -10 -9 -8 -8 -------- Run | Yrd Mat Min Mat Mat Sto Hostile Shots Fired 273 | . 15 11 20 156 71 Missed 52 | . 5 3 5 23 16 Damage Taken 3534 | . 137 192 204 1978 1023 Core 695 | . 29 59 51 221 335 Absorbed by Shields . | . . . . . . Core Remaining (%) 83 | 100 . 64 87 . . Volleys Fired 76 | . 4 4 7 49 12 Largest 2 | . 2 2 2 2 2 Hottest 160 | . 100 100 95 116 160 Shots Fired 139 | . 8 7 14 88 22 Gun 84 | . 6 3 7 48 20 Cannon 53 | . 2 4 7 38 2 Launcher 2 | . . . . 2 . Special . | . . . . . . Kinetic 57 | . . . 7 46 4 Thermal 71 | . 2 4 7 40 18 Explosive . | . . . . . . Electromagnetic 11 | . 6 3 . 2 . Robot Hit Streak 12 | . 3 8 11 12 11 Robot Miss Streak 4 | . 3 2 3 3 4 Penetration Max 1 | . . . . 1 . Secondary Targets . | . . . . . . Shots Hit Robots 92 | . 4 5 11 54 18 Core Hits 45 | . 3 2 4 27 9 Critical Kills . | . . . . . . Critical Parts Destroyed 1 | . . . . 1 . Critical Strikes 1 | . . . . 1 . Destroy 1 | . . . . 1 . Melee Attacks . | . . . . . . Impact . | . . . . . . Slashing . | . . . . . . Piercing . | . . . . . . Sneak Attacks . | . . . . . . Combat Hostiles . | . . . . . . Follow-up Attacks . | . . . . . . Damage Inflicted 2071 | . 79 104 152 1321 415 Guns 953 | . 61 34 39 459 360 Cannons 926 | . 18 70 113 675 50 Explosions 187 | . . . . 187 . Melee . | . . . . . . Ramming 5 | . . . . . 5 Kinetic 512 | . . . 39 438 35 Thermal 1295 | . 18 70 113 719 375 Explosive . | . . . . . . Electromagnetic 259 | . 61 34 . 164 . Impact . | . . . . . . Slashing . | . . . . . . Piercing . | . . . . . . Highest Corruption 3 | . 1 3 . 1 1 Average Corruption 1 | . 1 1 . 1 1 Corruption Purged . | . . . . . . Corruption Blocked . | . . . . . . Effects 4 | . . 1 . . 3 Message Errors 1 | . . . . . 1 Matter Fused 1 | . . . . . 1 Data Loss (minor) 1 | . . 1 . . . Data Loss (major) 1 | . . . . . 1 Overload Shots . | . . . . . . Overflow Damage 22 | . . . . 22 . Projectiles 22 | . . . . 22 . Explosions . | . . . . . . Melee . | . . . . . . Knockbacks . | . . . . . . Impact . | . . . . . . Kinetic . | . . . . . . Secondary . | . . . . . . Self-Inflicted Damage 20 | . . . . 18 2 Shots 1 | . . . . 1 . Rammed 2 | . . . . . 2 Targets Rammed 2 | . . . . . 2 Kicked . | . . . . . . Crushed . | . . . . . . Highest Temperature 564 | . 24 56 41 564 110 Average Temperature 181 | . 13 20 19 236 37 Received Heat Transfer 1504 | . 78 85 90 1062 189 Effects 21 | . . . . 21 . Shutdowns 5 | . . . . 5 . Energy Bleed 2 | . . . . 2 . Interference 4 | . . . . 4 . Damage (minor) 1 | . . . . 1 . Damage (major) 9 | . . . . 9 . Siege Activations . | . . . . . . Robots Corrupted . | . . . . . . Combat Hostiles . | . . . . . . Parts Fried . | . . . . . . Impact Corruptions . | . . . . . . Robots Melted . | . . . . . . Combat Hostiles . | . . . . . . Parts Melted 1 | . . . . . 1 Heat Transferred 2330 | . 37 148 222 1099 824 Parts Sabotaged . | . . . . . . Parts Stolen . | . . . . . . Parts Stripped . | . . . . . . Power Chain Reactions 1 | . . . . 1 . Alert | -11 -10 -10 -9 -8 -8 ------- Run | Yrd Mat Min Mat Mat Sto Peak Influence 468 | . 118 107 102 468 194 Initial 83 | . . 45 22 42 83 Average 117 | . 26 56 51 241 136 Maximum Alert Level 2 | . . . . 2 . Low Security (%) 78 | 100 100 100 100 27 100 Level 1 17 | . . . . 60 . Level 2 3 | . . . . 12 . Level 3 . | . . . . . . Level 4 . | . . . . . . Level 5 . | . . . . . . High Security . | . . . . . . Max Security . | . . . . . . Squads Dispatched 5 | . 1 . . 3 1 Investigation 2 | . . . . 1 1 Extermination . | . . . . . . Reinforcement 3 | . 1 . . 2 . Assault . | . . . . . . Garrison . | . . . . . . Intercept . | . . . . . . Searches Triggered . | . . . . . . Construction Impeded . | . . . . . . Haulers Reinforced . | . . . . . . Active Scanning Responses . | . . . . . . Cargo Convoy Interrupts . | . . . . . . Stealth | -11 -10 -10 -9 -8 -8 --------- Run | Yrd Mat Min Mat Mat Sto Distress Signals 4 | . 3 . . 1 . Communications Jammed . | . . . . . . Distress Signals . | . . . . . . Times Spotted 59 | . 14 7 6 26 6 Peak Tracking Total 12 | . 12 4 4 6 4 Tactical Retreats 6 | . 1 . . 5 . Traps | -11 -10 -10 -9 -8 -8 ------- Run | Yrd Mat Min Mat Mat Sto Traps Triggered . | . . . . . . Indirectly . | . . . . . . Trap Hack Attempts . | . . . . . . Triggered . | . . . . . . Disarmed 4 | . . . . . 4 Reprogrammed . | . . . . . . Reused . | . . . . . . Traps Extracted . | . . . . . . Installed . | . . . . . . Triggered . | . . . . . . Machines | -11 -10 -10 -9 -8 -8 ---------- Run | Yrd Mat Min Mat Mat Sto Machines Disabled . | . . . . . . Max in Single Turn . | . . . . . . Machines Repaired . | . . . . . . Machines Dismantled . | . . . . . . Machines Sabotaged . | . . . . . . Overloaded Fab Kills . | . . . . . . Hacking | -11 -10 -10 -9 -8 -8 --------- Run | Yrd Mat Min Mat Mat Sto Machines Accessed 5 | . 1 . 1 1 2 Terminals 5 | . 1 . 1 1 2 Fabricators . | . . . . . . Repair Stations . | . . . . . . Recycling Units . | . . . . . . Scanalyzers . | . . . . . . Garrison Access . | . . . . . . Total Hacks 19 | . 4 . 3 3 9 Successful 11 | . 3 . 1 . 7 Failed 8 | . 1 . 2 3 2 Catastrophic 2 | . 1 . . 1 . Database Lockouts . | . . . . . . Manual 7 | . 2 . 2 3 . Terminals 19 | . 4 . 3 3 9 Fabricators . | . . . . . . Repair Stations . | . . . . . . Recycling Units . | . . . . . . Scanalyzers . | . . . . . . Garrison Access . | . . . . . . Terminal Hacks 11 | . 3 . 1 . 7 Record 1 | . . . . . 1 Robot Analysis 1 | . 1 . . . . Branch Access Points 1 | . 1 . . . . Emergency Access Points 1 | . . . . . 1 Alert Level 1 | . . . . . 1 Locate Traps 2 | . 1 . . . 1 Disarm Traps 2 | . . . . . 2 Hauler Manifests 1 | . . . . . 1 Zone Layout 1 | . . . 1 . . Fabricator Hacks . | . . . . . . Repair Station Hacks . | . . . . . . Recycling Unit Hacks . | . . . . . . Scanalyzer . | . . . . . . Garrison Access Hacks . | . . . . . . Unauthorized Hacks . | . . . . . . Terminals . | . . . . . . Fabricators . | . . . . . . Repair Stations . | . . . . . . Recycling Units . | . . . . . . Scanalyzers . | . . . . . . Garrison Access . | . . . . . . Data Cores Recovered . | . . . . . . Used . | . . . . . . Hacking Detections 5 | . 1 . 1 1 2 Full Trace Events 4 | . 1 . 1 1 1 Feedback Events 1 | . 1 . . . . Corruption 1 | . 1 . . . . Feedback Blocked . | . . . . . . Robot Schematics Acquired . | . . . . . . Robots Built . | . . . . . . Authchips . | . . . . . . Time . | . . . . . . Total Robot Build Rating . | . . . . . . Part Schematics Acquired . | . . . . . . Parts Built . | . . . . . . Authchips . | . . . . . . Time . | . . . . . . Total Part Build Rating . | . . . . . . Parts Repaired . | . . . . . . Time . | . . . . . . Parts Recycled . | . . . . . . Recycled Matter . | . . . . . . Retrieved Matter . | . . . . . . Retrieved Components . | . . . . . . Parts Scanalyzed . | . . . . . . Part Schematics Acquired . | . . . . . . Parts Damaged . | . . . . . . Bothacking | -11 -10 -10 -9 -8 -8 ------------ Run | Yrd Mat Min Mat Mat Sto Used RIF Installer . | . . . . . . Robots Hacked . | . . . . . . Non-combat . | . . . . . . Combat . | . . . . . . Robot Hacks Applied . | . . . . . . Relay Couplers Released . | . . . . . . Fabnet Peak Effective % . | . . . . . . Robots Rewired . | . . . . . . Allies Hacked . | . . . . . . Hacks Repelled . | . . . . . . Allies | -11 -10 -10 -9 -8 -8 -------- Run | Yrd Mat Min Mat Mat Sto Total Allies 3 | . . 3 . . . Largest Group 3 | . . 3 . . . Highest-Rated Group 40 | . . 40 . . . Highest-Rated Ally 16 | . . 16 . . . Total Orders . | . . . . . . Ally Attacks 24 | . . 24 . . . Total Damage 250 | . . 250 . . . Kills 3 | . . 3 . . . Allies Corrupted . | . . . . . . Allies Melted . | . . . . . . Intel | -11 -10 -10 -9 -8 -8 ------- Run | Yrd Mat Min Mat Mat Sto Robot Analysis Total 1 | . 1 . . . . Derelict Logs Recovered 1 | . . 1 . . . Drone Launches . | . . . . . . Drone Recoveries . | . . . . . . Exploration | -11 -10 -10 -9 -8 -8 ------------- Run | Yrd Mat Min Mat Mat Sto Turns Passed 1507 | 94 219 225 233 440 296 Spaces Moved 888 | 73 150 157 161 235 112 Core 24 | 23 . . . . 1 Treads . | . . . . . . Legs 864 | 50 150 157 161 235 111 Wheels . | . . . . . . Hover . | . . . . . . Flight . | . . . . . . Fastest Speed 50 | 50 120 120 90 90 90 Average Speed 109 | 104 120 120 107 99 111 Slowest Speed 120 | 120 120 120 120 120 113 Overloaded Moves . | . . . . . . Propulsion Burnouts . | . . . . . . Robots Hopped . | . . . . . . Cave-ins Triggered . | . . . . . . Exploration Rate (%) 26 | 4 44 44 23 21 24 Regions Visited 5 Branch Regions 2 Pre-discovered Areas 2 | . . 2 . . . Known Exits Taken 1 | . 1 . . . . Unknown Exits Taken 4 | 1 . 1 1 1 . Scrap Searched . | . . . . . . Spaces Dug . | . . . . . . Terrain Destroyed 16 | . . . . 16 . Melee . | . . . . . . Projectile 13 | . . . . 13 . AOE 3 | . . . . 3 . Terrain Rammed . | . . . . . . Walls Destroyed . | . . . . . . Machines Disabled . | . . . . . . Actions | -11 -10 -10 -9 -8 -8 --------- Run | Yrd Mat Min Mat Mat Sto Total 1290 | 90 181 188 212 361 258 Wait 227 | . 23 19 17 44 124 Move 883 | 72 149 156 160 234 112 Hop . | . . . . . . Pick Up 40 | 12 3 5 9 9 2 Fast Attach 2 | . . . 2 . . Attach 27 | 6 2 1 2 10 6 Detach . | . . . . . . Swap 11 | . . . 4 7 . Drop 22 | . . 3 11 8 . Fire 76 | . 4 4 7 49 12 Melee . | . . . . . . Ram 2 | . . . . . 2 Kick . | . . . . . . Crush . | . . . . . . Escape Stasis . | . . . . . . Rewire . | . . . . . . Trap . | . . . . . . Miscellaneous . | . . . . . . Route ------- -11/Scrapyard -10/Materials (discovered 2 exits: *Mat / *Min) -10/Mines -9/Materials -8/Materials -8/Storage History --------- Turn | Location | Event 2 | -11/Scrapyard | Met Revision 17 5 | -11/Scrapyard | Discovered new exit (range 14) 95 | -11/Scrapyard | Entered Materials 212 | -10/Materials | Identified exit to Mines 257 | -10/Materials | Discovered new exit (range 13) 300 | -10/Materials | Build established: Mutant 314 | -10/Materials | Entered Mines 318 | -10/Mines | Assisted by bots powering up and referring to "LRC-V3" 338 | -10/Mines | Learned location of Storage (-8) 338 | -10/Mines | Learned location of Zion (-6) 383 | -10/Mines | Assembled infested the area 388 | -10/Mines | Assisted by a Guerilla fighting off Assembled 481 | -10/Mines | Lost 3 allies 508 | -10/Mines | Discovered new exit (range 9) 536 | -10/Mines | Received a Rocket Launcher from a helpful Derelict 539 | -10/Mines | Entered Materials 539 | -9/Materials | Evolved 2 slots: Propulsion x2 759 | -9/Materials | Discovered new exit (range 16) 772 | -9/Materials | Entered another Materials area 772 | -8/Materials | Evolved 2 slots: Utility x2 1117 | -8/Materials | Discovered new exit (range 16) 1212 | -8/Materials | Entered Storage 1243 | -8/Storage | Lost 11 parts (2p3n4u2w) 1484 | -8/Storage | Core integrity fell below 50% 1502 | -8/Storage | Core integrity fell below 20% 1508 | -8/Storage | Destroyed by G-47 Trooper with Particle Gun Last Messages --------------- Acquired 4 matter. R-06 Scavenger collects Med. Storage Unit. Titanium Leg destroyed. Carbon-fiber Leg destroyed. Acquired 4 matter. R-06 Scavenger collects Med. Storage Unit. Slug penetrates L-31 Rogue. Gauss Rifle destroyed. Gatling Laser destroyed. VSS Leg destroyed. Carbon-fiber Leg severed. EM Pulse Cannon severed. Slammed into L-31 Rogue. K-01 Serf collects debris. Critical hit (Burn: +37). Hvy. Particle Cannon destroyed. Acquired Carbon-fiber Leg. Carbon-fiber Leg destroyed. K-01 Serf collects debris. Slammed into G-47 Trooper. Map ----- +----------------------------------------------------+ | ?????????????????????????????????????????????????? | | ?????????????????????????????????????????????????? | | ?????????????????????????????????????????????????? | | ?????????????????????????????????????????????????? | | ?????????????????????????????????????????????????? | | ?????????????????????????????????????????????????? | | ?????????????????????????????????????????????????? | | ?????????????????????????????????????????????????? | | ?????????????????????????????????????????????????? | | ?????????????????????????????????????????????????? | | ?????????????????????????????????????????????????? | | ?????????????????????????????????????????????????? | | ?????????????????????????????????????????????????? | | ?????????????????????????????????????????????????? | | ?????????????????????????????????????????????????# | | ?????????????????????????????????????????????????# | | ???????????????????????????????????????#######+#?# | | ???????????????????????????????????????# #?# | | ???????????????????????????????????????# #?# | | ???????????????????????????????????????# #?# | | ???????????????????################????# #?# | | ???????????????????# #??######+## #?# | | ????????????????????# Y ???# # #?# | | ????????????????????# """]""" """ #??# # #?# | | ????????????????????# """g""" """ #??# # ### | | ????????????????????# """@"""a""" #??# # ## | | ????????????????????# lg k #??# # | | ????????????????????#######+###############+##### | | ????????????????????? # + #?## | | ???????????????????? + # """" #??# | | ??????????????????????# % % # """" ##?# | | ??????????????????????# ####### # """" "#?# | | ??????????????????????# # # + """" T#?# | | ??????????????????????# # ????# # "#?# | | ??????????????????????# ??????# # ] ##?# | | ??????????????????????# ??????# # #??# | | ??????????????????????# ??????# ###"T"#####??# | | ??????????????????????# ???????# #?#"""#??????# | | ?????????????????????? ???????# #?#####???#### | | ?????????????????????? ???????# #?????????# = | | ????????????????????? ???????# #?????????# | | ?????????????????????###+???????# #?????????# "" | | ????????????????????????????????# #?????????# ?? | | ????????????????????????????????# #?????????# ?? | | ????????????????????????????????# #?????????# "? | | ????????????????????????????????# #?????????# " | | ????????????????????????????????? #?????????# | | ????????????????????????????????? ??????????# | | ???????????????????????????????????????????####### | | ????????????????????????????????????? | +----------------------------------------------------+ Best States ------------- Heat Dissipation 41 Energy Generation 18 Energy Capacity 280 Matter Stores 300 Matter Capacity 300 Sight Range 16 Terrain Scan Density 10 Armor Coverage 450 Evasion (%) 57 Offensive Hacking 10 Item Schematics ----------------- None Robot Schematics ------------------ None Fabricated ------------ Nothing Alien Tech Used ----------------- None Achievements -------------- None Challenges ------------ None Game ------ Seed DeepShieldTelecube Manual? 0 Play Time 00:25:48 Cumulative 12.2 hours Start 2024.11.11 @ 01:11:05 End 2024.11.11 @ 01:38:54 Sessions 1 Manual Loads 0 Difficulty Rogue Special Mode None Game No. 31 Rogue 28 Adventurer 1 Explorer 2 Win Type - Total 0 Types 0/0/0/0/0/0/0/0/0 Lore% 12 Gallery% 20 Achievement% 18 Wizard Run 0 Options --------- Layout 1 ASCII 0 Keyboard 0 Movement Numpad Keybinds 0 Fullscreen 1 Font 48/Smallcaps Map View 50x35 Zoom Use 0% Tactical HUD 0 Map Filters NONE Filters NONE Steam 1 RUN: 60881451-b34b-482f-ba75-7ca63464fba9